bitfinex-derivatives/quotes_ETHF0:USTF0_20251117
["timestamp","ask_amount","ask_price","bid_price","bid_amount"]
[1763356642486,3.2078,3187.0,3186.5,0.15880559]
[1763356642691,3.2078,3186.6,3186.5,0.93397058]
[1763356643996,3.2078,3186.6,3186.5,0.42520058]
[1763356646901,3.21151838,3187.0,3186.9,0.2639]
[1763356650197,3.21151838,3187.0,3186.5,0.16130058]
[1763356650499,3.2078,3186.6,3186.5,0.16130058]
[1763356650894,3.72020838,3187.0,3186.5,0.42520058]
[1763356651091,3.21151838,3187.0,3186.9,0.2639]
[1763356652207,0.00470559,3187.1,3187.0,0.2639]
[1763356652791,0.00470559,3187.1,3187.0,41.0639]
[1763356654005,3.2078,3187.4,3187.3,0.2639]
[1763356654710,3.21014454,3187.4,3187.3,0.2639]
[1763356654902,3.2078,3187.8,3187.7,0.2639]
[1763356655900,3.71637,3187.8,3187.2,0.1541]
[1763356656105,3.21035727,3187.8,3187.2,0.1541]
[1763356656708,3.21035727,3187.8,3187.7,0.2639]
[1763356657211,0.0866,3187.6,3187.2,0.1541]
[1763356657405,0.0866,3187.3,3187.2,0.1541]
[1763356657606,0.0866,3187.1,3186.6,3.2078]
[1763356657805,4.52112142,3187.4,3186.6,3.2078]
[1763356658011,0.0866,3186.6,3186.5,0.00720058]
[1763356658506,1.39992142,3186.6,3186.5,0.00720058]
[1763356660215,3.2078,3186.9,3186.5,0.00720058]
[1763356660514,0.0866,3186.6,3186.5,0.00720058]
[1763356662215,3.2078,3186.9,3186.6,0.1541]
[1763356663118,3.2078,3186.9,3186.5,0.00720058]
[1763356663119,0.0866,3186.6,3186.5,0.00720058]
[1763356663518,0.50873,3186.8,3186.5,0.00720058]
[1763356664618,0.50873,3186.8,3186.5,0.16130058]
[1763356665618,0.0866,3186.6,3186.5,0.16130058]
[1763356667618,3.2078,3186.5,3185.0,1.26898422]
[1763356667811,0.0794,3184.9,3184.5,0.99017746]
[1763356668018,3.2078,3184.7,3184.5,0.1541]
[1763356668213,3.2078,3184.7,3184.6,0.50906]
[1763356668408,3.6001,3184.7,3184.6,0.50906]
[1763356668815,3.60334316,3184.7,3184.6,0.00269684]
[1763356669314,3.21104316,3184.7,3184.6,0.00269684]
[1763356669821,3.60334316,3184.7,3184.6,0.00269684]
[1763356670023,3.21104316,3184.7,3184.6,0.00269684]
[1763356672821,3.21104316,3184.7,3184.6,0.38809684]
[1763356673015,0.00470559,3185.0,3184.9,0.3854]
[1763356674027,0.00794452,3185.0,3184.9,0.3854]
[1763356674616,1.16637492,3185.0,3184.9,0.3854]
[1763356674816,1.16637492,3185.0,3184.6,0.00269684]
[1763356675820,1.16637492,3185.0,3184.9,0.3854]
[1763356676028,0.00794452,3185.0,3184.9,0.3854]
[1763356681025,3.2078,3185.5,3184.9,6.3854]
[1763356681221,1.2739304,3187.0,3185.9,0.3854]
[1763356681222,3.2078,3186.0,3185.9,0.3854]
[1763356681828,3.2078,3186.0,3185.9,41.1854]
[1763356682018,3.21170301,3186.0,3185.9,41.1854]
[1763356682925,0.00390301,3186.0,3185.9,41.1854]
[1763356685527,3.2078,3186.4,3186.3,0.3854]
[1763356686223,0.3923,3185.7,3185.6,0.00470559]
[1763356686424,0.3923,3185.1,3184.8,3.2078]
[1763356686733,1.1584304,3185.0,3184.9,0.3854]
[1763356686925,0.00398374,3185.1,3184.9,0.3854]
[1763356687322,1.12374076,3186.3,3186.0,0.3854]
[1763356687626,1.83830107,3186.5,3186.2,0.3854]
[1763356687627,0.15740559,3186.5,3186.2,0.3854]
[1763356688030,0.15740559,3186.5,3186.3,40.8]
[1763356688831,0.16028086,3186.5,3186.3,40.8]
[1763356689633,0.00758086,3186.5,3186.4,0.3854]
[1763356689833,0.00758086,3186.5,3186.4,3.5932]
[1763356690128,3.2078,3187.5,3187.4,0.3854]
[1763356690324,3.6001,3187.5,3186.5,2.44517242]
[1763356691028,3.6001,3187.5,3186.5,0.1645]
[1763356691624,3.2078,3187.1,3186.5,0.00295843]
[1763356691829,3.71648,3187.1,3186.5,0.00295843]
[1763356692134,0.1527,3187.2,3186.5,0.00295843]
[1763356692135,3.2078,3186.7,3186.5,0.00295843]
[1763356693021,0.545,3186.6,3186.5,0.00295843]
[1763356695226,3.2078,3186.7,3186.5,0.00295843]
[1763356695532,3.2078,3186.7,3186.6,0.3854]
[1763356697438,3.2078,3187.2,3187.1,0.3854]
[1763356697631,3.2078,3187.2,3186.6,3.3723]
[1763356697828,3.3605,3187.2,3186.6,3.2078]
[1763356699035,0.3923,3186.7,3186.6,3.2078]
[1763356699231,0.3923,3186.7,3186.6,44.0078]
[1763356699437,3.6001,3186.7,3186.6,40.8]
[1763356699931,0.364,3186.6,3186.5,0.00295843]
[1763356700432,3.2078,3186.7,3186.5,0.00295843]
[1763356702340,0.22555022,3187.5,3184.9,2.24382613]
[1763356702341,0.50901,3185.0,3184.9,2.24382613]
[1763356702538,4.3662304,3185.0,3183.5,0.1645]
[1763356702833,3.2078,3184.2,3184.1,0.3785]
[1763356703024,4.3662304,3184.2,3184.1,3.3418325]
[1763356703225,3.21158749,3184.2,3184.1,3.34530436]
[1763356703434,3.21158749,3184.2,3184.1,5.96761261]
[1763356703931,3.21158749,3184.2,3184.1,5.58911261]
[1763356705342,3.21158749,3184.2,3184.1,5.96761261]
[1763356708640,3.21158749,3184.2,3184.1,3.72380436]
[1763356708840,3.21158749,3184.2,3184.1,5.96761261]
[1763356709032,3.21158749,3184.2,3184.1,5.58911261]
[1763356709228,3.21158749,3184.2,3184.1,3.34530436]
[1763356709542,3.21158749,3184.2,3184.1,5.96761261]
[1763356710643,3.21158749,3184.2,3184.1,5.58911261]
[1763356711140,3.72072749,3184.2,3184.1,0.00347186]
[1763356711344,4.49372713,3184.2,3184.1,0.00347186]
[1763356711544,4.49372713,3184.2,3183.8,0.00470559]
[1763356711545,0.50918,3184.0,3183.8,0.00470559]
[1763356711847,1.1584304,3183.9,3183.8,5.59034634]
[1763356712037,1.1584304,3183.9,3183.8,3.34653809]
[1763356712238,1.1584304,3183.9,3183.8,0.00470559]
[1763356712640,1.1584304,3183.9,3183.8,0.00768255]
[1763356712940,1.1584304,3183.9,3183.8,2.2514908]
[1763356714045,1.1584304,3183.9,3183.7,0.03141049]
[1763356714046,0.5092,3183.8,3183.7,0.03141049]
[1763356714245,3.717,3183.8,3183.7,0.03141049]
[1763356714446,3.2078,3183.8,3183.7,3.37324299]
[1763356714949,3.2078,3183.8,3183.7,0.03141049]
[1763356715141,3.2078,3183.8,3183.7,1.95669567]
[1763356715639,3.2078,3183.8,3183.7,0.03539708]
[1763356715845,3.2078,3183.8,3183.7,1.95669567]
[1763356716346,3.2078,3183.8,3183.7,0.03539708]
[1763356716540,3.21158749,3184.2,3184.1,0.3785]
[1763356716741,3.2078,3184.4,3184.1,0.3785]
[1763356716937,3.2078,3184.4,3184.1,2.29979859]
[1763356717744,3.21157944,3184.4,3184.1,2.29979859]
[1763356717948,3.21157944,3184.4,3184.1,0.3785]
[1763356718143,3.21157944,3184.4,3184.3,0.3785]
[1763356718541,3.21157944,3184.4,3184.3,2.4300436]
[1763356719754,3.21157944,3184.4,3184.3,0.50874501]
[1763356720059,3.21157944,3184.4,3184.3,2.4300436]
[1763356722955,0.00377944,3184.4,3184.3,2.4300436]
[1763356723155,3.21157944,3184.4,3184.3,0.13024501]
[1763356723356,4.37000984,3184.4,3184.3,1.92129859]
[1763356723548,0.50915,3184.1,3184.0,0.2213]
[1763356723747,1.6675804,3184.1,3184.0,2.2728436]
[1763356723959,1.6675804,3184.1,3184.0,0.35154501]
[1763356724449,0.50918,3184.0,3183.7,0.03539708]
[1763356724655,4.8754304,3183.8,3183.7,0.03539708]
[1763356724845,4.8754304,3183.8,3183.7,1.95669567]
[1763356725048,4.8754304,3183.8,3183.7,0.03539708]
[1763356725455,4.3662304,3183.8,3183.7,0.16564209]
[1763356725844,4.3662304,3183.8,3183.7,2.08694068]
[1763356727657,4.3662304,3183.8,3182.0,0.2213]
[1763356727658,0.50939,3182.6,3182.0,0.2213]
[1763356727856,4.3662304,3182.1,3182.0,0.2213]
[1763356728160,0.50953,3181.8,3181.5,0.2213]
[1763356728348,4.3662304,3181.6,3181.5,0.2213]
[1763356728659,5.14329859,3181.6,3181.5,0.0025315]
[1763356730146,3.98486819,3181.6,3181.5,0.6693315]
[1763356730361,3.21142458,3181.6,3181.5,0.6693315]
[1763356730759,0.00362458,3181.6,3181.5,0.6693315]
[1763356731264,3.21142458,3181.6,3181.5,0.8882315]
[1763356732161,3.98560627,3181.6,3181.5,0.8882315]
[1763356733262,3.98560627,3181.6,3181.5,1.5372315]
[1763356735257,0.00362458,3181.6,3181.5,1.5372315]
[1763356737961,0.00362458,3181.6,3181.5,0.6515315]
[1763356738268,5.03584207,3181.6,3181.5,0.8704315]
[1763356738464,4.49411648,3181.6,3181.5,0.8704315]
[1763356738762,3.98456648,3181.6,3181.5,0.8704315]
[1763356739668,3.98456648,3181.6,3181.5,1.5372315]
[1763356741065,5.29943397,3181.6,3181.5,0.8704315]
[1763356742671,3.98456648,3181.6,3181.5,1.5372315]
[1763356744664,0.00471357,3181.9,3181.8,0.6668]
[1763356744863,2.8573548,3182.0,3181.9,0.6668]
[1763356745771,2.85984386,3182.0,3181.9,0.6668]
[1763356746367,0.00248906,3182.0,3181.9,0.6668]
[1763356748073,0.00471357,3182.3,3181.6,40.8]
[1763356748074,0.00471357,3182.3,3182.2,0.6668]
[1763356748975,0.00845109,3182.3,3182.2,0.6668]
[1763356750372,3.2078,3182.8,3182.7,0.6668]
[1763356750568,3.2078,3183.2,3183.1,0.6668]
[1763356751467,3.21005653,3183.2,3183.1,0.6668]
[1763356756684,3.9727479,3183.2,3183.1,0.6668]
[1763356758383,3.21005653,3183.2,3183.1,0.6668]
[1763356758883,3.2078,3184.3,3184.2,0.5795]
[1763356759182,3.97067134,3184.3,3184.2,0.5795]
[1763356759676,3.97367958,3184.3,3184.2,0.58354092]
[1763356761184,3.21080824,3184.3,3184.2,0.58354092]
[1763356761385,0.00300824,3184.3,3184.2,0.58354092]
[1763356761983,3.2078,3184.8,3184.7,0.5795]
[1763356762880,3.21152051,3184.8,3184.7,0.5795]
[1763356763787,3.21152051,3184.8,3184.5,0.3621]
[1763356767990,3.21152051,3184.8,3184.7,0.5795]
[1763356768993,0.00372051,3184.8,3184.7,3.7873]
[1763356769298,3.71666,3186.0,3185.0,0.3621]
[1763356769493,0.75015859,3185.9,3185.2,3.2078]
[1763356769803,0.75015859,3185.9,3185.0,0.3621]
[1763356770201,0.50889,3185.8,3185.0,0.3621]
[1763356770388,0.75015859,3185.7,3185.5,0.3621]
[1763356770793,0.51122412,3185.8,3185.5,0.3621]
[1763356770993,0.7499442,3185.7,3185.5,0.3621]
[1763356773405,1.2588442,3185.7,3185.5,0.3621]
[1763356773607,3.9577442,3185.6,3185.5,0.3621]
[1763356778314,3.9577442,3185.6,3185.0,0.3621]
[1763356778612,0.50898,3185.2,3185.0,0.3621]
[1763356778814,0.7499442,3185.1,3185.0,0.3621]
[1763356780208,2.37685734,3185.2,3185.0,0.3621]
[1763356780407,0.7499442,3185.1,3185.0,0.3621]
[1763356780608,0.7499442,3185.1,3185.0,0.9416]
[1763356780806,0.75341186,3185.2,3185.0,0.3621]
[1763356781006,0.75341186,3185.1,3185.0,0.9416]
[1763356781313,1.26234186,3185.5,3185.0,0.9416]
[1763356781507,0.75341186,3185.4,3185.0,0.9416]
[1763356781905,0.75341186,3185.4,3185.0,0.3621]
[1763356782414,0.50897,3185.3,3185.0,0.3621]
[1763356782599,0.75341186,3185.2,3185.0,0.3621]
[1763356782805,0.75341186,3185.2,3185.1,0.5795]
[1763356783212,1.871345,3185.4,3185.1,0.5795]
[1763356783409,0.75341186,3185.3,3185.2,0.5795]
[1763356783912,0.75341186,3185.3,3185.0,0.3621]
[1763356784308,0.75341186,3185.2,3185.0,0.3621]
[1763356784508,0.75341186,3185.1,3185.0,0.9416]
[1763356784709,0.75341186,3185.3,3185.0,0.9416]
[1763356784908,0.75341186,3185.2,3185.1,0.5795]
[1763356785121,0.75341186,3185.3,3185.1,0.5795]
[1763356785416,0.75341186,3185.2,3185.1,0.5795]
[1763356787414,1.871345,3185.2,3185.1,0.5795]
[1763356787719,0.75341186,3185.2,3185.1,0.5795]
[1763356788215,1.871345,3185.2,3185.1,0.5795]
[1763356789119,0.75341186,3185.2,3185.1,0.5795]
[1763356789320,0.37637737,3185.2,3185.1,0.5795]
[1763356790804,0.37637737,3185.2,3185.1,41.3795]
[1763356794417,1.11793314,3185.5,3185.4,0.5652]
[1763356794622,1.11793314,3185.6,3185.5,0.9344]
[1763356796518,1.11793314,3185.6,3185.5,0.3692]
[1763356796718,1.11793314,3185.6,3185.5,0.9344]
[1763356800621,1.11793314,3185.6,3185.5,0.3692]
[1763356800929,1.11793314,3185.6,3185.5,0.9344]
[1763356801627,1.11793314,3185.7,3185.5,0.9344]
[1763356801830,1.11793314,3185.7,3185.6,0.5652]
[1763356802027,1.12837409,3185.7,3185.5,0.3692]
[1763356802230,1.12837409,3185.6,3185.5,0.3692]
[1763356802924,1.12837409,3185.6,3185.5,0.9344]
[1763356803126,1.12837409,3185.7,3185.6,0.5652]
[1763356805122,0.00233412,3185.8,3185.6,0.5652]
[1763356805123,1.13070821,3185.8,3185.6,0.5652]
[1763356806230,0.00233412,3185.8,3185.6,0.5652]
[1763356806532,0.00233412,3185.8,3185.7,0.5652]
[1763356806731,0.75224328,3185.8,3185.7,0.5652]
[1763356807427,0.75224328,3185.8,3185.7,3.773]
[1763356807628,0.75224328,3185.8,3185.7,0.5652]
[1763356807836,0.00233412,3185.8,3185.7,0.5652]
[1763356808134,0.75224328,3185.8,3185.5,0.3692]
[1763356808934,1.52386044,3185.8,3185.5,0.3692]
[1763356809233,1.52386044,3185.8,3185.3,3.2078]
[1763356809234,2.05216432,3185.6,3185.3,3.2078]
[1763356809534,0.77161716,3185.4,3185.3,3.2078]
[1763356809727,1.09313606,3185.6,3185.5,0.9344]
[1763356809924,0.00233412,3185.8,3185.7,0.5652]
[1763356811632,0.00233412,3185.8,3185.7,1.33681716]
[1763356811831,4.65956043,3187.2,3186.7,0.5652]
[1763356811832,1.67689971,3186.8,3186.7,0.5652]
[1763356812026,4.88469971,3186.9,3186.8,0.5652]
[1763356812232,4.88469971,3186.9,3186.5,0.3692]
[1763356812533,0.77161716,3186.6,3186.5,0.9344]
[1763356812722,0.7743112,3186.6,3186.5,0.93760994]
[1763356813331,0.7743112,3186.6,3186.5,0.37240994]
[1763356813526,0.7743112,3186.6,3186.5,0.93760994]
[1763356814126,0.00269404,3186.6,3186.5,0.93760994]
[1763356821748,4.88469971,3187.8,3187.5,0.8757]
[1763356821937,1.25176962,3187.7,3187.5,0.8757]
[1763356822242,0.74317962,3187.6,3187.5,0.8757]
[1763356822637,0.74672301,3187.6,3187.5,0.3302]
[1763356828052,0.50865,3187.3,3187.0,0.3302]
[1763356828350,2.40855292,3187.2,3187.0,0.3302]
[1763356828547,0.73863041,3187.1,3186.5,1.85040994]
[1763356828853,1.6654433,3186.8,3186.5,0.37240994]
[1763356829142,0.73863041,3186.7,3186.5,0.37240994]
[1763356830642,0.73863041,3186.7,3186.6,0.5455]
[1763356831041,3.2078,3187.0,3186.9,0.5455]
[1763356831249,3.94669467,3187.0,3186.9,0.5455]
[1763356833749,5.10339797,3187.0,3186.5,0.37240994]
[1763356834056,1.24761467,3186.9,3186.5,0.37240994]
[1763356834354,0.73889467,3186.8,3186.5,0.37240994]
[1763356836857,0.77124231,3186.6,3186.5,0.91790994]
[1763356837156,1.51013698,3186.6,3186.5,0.91790994]
[1763356838057,1.51013698,3186.6,3186.5,0.37240994]
[1763356838261,2.28137929,3186.6,3186.5,0.37240994]
[1763356839554,1.51013698,3186.6,3186.5,0.91790994]
[1763356839758,2.63714152,3186.6,3186.5,0.91790994]
[1763356843059,3.40838383,3186.6,3186.5,0.37240994]
[1763356843562,2.63714152,3186.6,3186.5,0.37240994]
[1763356843862,1.86589921,3186.6,3186.5,0.37240994]
[1763356844062,2.63714152,3186.6,3186.5,0.37240994]
[1763356844263,3.40838383,3186.6,3186.5,0.37240994]
[1763356844452,2.63714152,3186.6,3186.5,0.37240994]
[1763356845063,2.63714152,3186.6,3186.5,0.91790994]
[1763356847563,2.63714152,3186.6,3186.5,0.37240994]
[1763356848059,2.63714152,3186.6,3186.5,0.91790994]
[1763356849258,0.73889467,3186.6,3186.5,1.68915225]
[1763356849664,4.33480454,3187.0,3186.9,0.4824]
[1763356849866,5.07414354,3187.0,3186.9,0.4824]
[1763356852167,3.947139,3187.0,3186.9,0.4824]
[1763356852759,1.51042529,3187.0,3186.9,0.4824]
[1763356853965,0.50874,3186.7,3186.5,0.37240994]
[1763356854259,1.51042529,3186.6,3186.5,0.37240994]
[1763356856463,1.51042529,3186.6,3186.5,0.85480994]
[1763356856961,2.63798852,3186.6,3186.5,0.85480994]
[1763356860666,0.739339,3186.6,3186.5,1.62589623]
[1763356860876,1.12756323,3186.9,3186.8,0.4824]
[1763356862259,1.12756323,3187.1,3187.0,0.8015]
[1763356864172,1.12756323,3187.2,3187.1,0.4824]
[1763356864771,1.12756323,3187.2,3187.0,0.3191]
[1763356865074,1.12756323,3187.1,3187.0,0.3191]
[1763356865270,1.12756323,3187.2,3187.0,0.3191]
[1763356865672,1.12756323,3187.2,3187.1,0.4824]
[1763356866469,2.447986,3187.3,3187.1,0.4824]
[1763356867370,1.12811241,3187.2,3187.1,0.4824]
[1763356869773,4.33591241,3187.2,3187.1,0.4824]
[1763356871388,0.50868,3187.1,3187.0,0.3191]
[1763356871576,0.50872,3186.9,3186.5,0.37240994]
[1763356871767,0.77108629,3186.6,3186.5,0.37240994]
[1763356872176,0.77108629,3186.6,3186.5,0.85480994]
[1763356872880,1.5069129,3186.6,3186.5,0.85480994]
[1763356875578,1.5069129,3186.6,3186.5,0.37240994]
[1763356879779,0.73582661,3186.6,3186.5,0.84010994]
[1763356880178,1.1279423,3186.9,3186.8,0.4665]
[1763356880387,1.86398738,3186.9,3186.8,0.4665]
[1763356881586,0.73604508,3186.9,3186.5,0.37240994]
[1763356881784,1.86456702,3186.8,3186.7,0.4665]
[1763356882285,0.73604508,3186.8,3186.7,0.4665]
[1763356883082,0.73604508,3186.8,3186.5,0.37240994]
[1763356883282,0.73604508,3186.7,3186.6,0.4665]
[1763356883479,1.24477508,3186.8,3186.6,0.4665]
[1763356883683,5.58111702,3186.7,3186.5,0.37240994]
[1763356883885,3.74299765,3186.6,3185.7,3.2078]
[1763356884184,3.74299765,3186.6,3185.5,0.3302]
[1763356884185,4.90095975,3186.1,3185.5,0.3302]
[1763356884379,1.89927227,3185.8,3185.5,0.3302]
[1763356884687,1.12818598,3185.6,3185.5,0.3302]
[1763356884892,1.86423106,3185.6,3185.5,0.33391972]
[1763356885185,0.73604508,3185.6,3185.5,0.33391972]
[1763356885781,1.86423106,3185.7,3185.5,0.33391972]
[1763356886086,0.73604508,3185.6,3185.5,0.33391972]
[1763356886288,0.73604508,3185.6,3185.5,0.80041972]
[1763356886586,0.73604508,3185.7,3185.5,0.80041972]
[1763356886788,0.73604508,3185.6,3185.5,0.80041972]
[1763356886987,2.40816227,3185.8,3185.6,0.4665]
[1763356887287,0.73442545,3185.7,3185.6,0.4665]
[1763356887987,1.90396165,3185.9,3185.8,0.4665]
[1763356888183,2.01869085,3185.9,3185.5,0.33391972]
[1763356888487,0.73404518,3185.8,3185.5,0.33391972]
[1763356891189,0.73404518,3185.8,3185.7,0.4665]
[1763356894391,0.73404518,3185.8,3185.5,0.33391972]
[1763356894592,0.50899,3185.2,3185.0,0.3191]
[1763356894890,0.73298203,3185.1,3185.0,0.3191]
[1763356895080,0.50907,3184.7,3184.4,0.24942263]
[1763356895286,1.54217258,3184.8,3184.4,0.24942263]
[1763356895287,0.50909,3184.5,3184.4,0.24942263]
[1763356895503,0.50914,3184.2,3184.0,0.2789]
[1763356895695,0.50914,3184.2,3184.1,0.00470551]
[1763356895896,1.24197579,3184.2,3184.1,0.00470551]
[1763356896812,2.01306208,3184.2,3184.1,0.00470551]
[1763356897912,5.99194837,3184.2,3184.0,0.00282541]
[1763356898214,0.50922,3183.8,3183.5,3.4867]
[1763356898401,0.77108629,3183.7,3183.5,3.4867]
[1763356898713,0.77108629,3183.7,3183.6,1.1155]
[1763356899013,0.50921,3183.8,3183.6,0.65212901]
[1763356899209,3.2078,3183.7,3183.6,0.65212901]
[1763356899914,3.2078,3183.7,3183.6,1.11862901]
[1763356900614,3.2078,3183.7,3183.6,0.65212901]
[1763356903412,3.2078,3183.7,3183.6,1.11862901]
[1763356904317,3.2078,3183.7,3183.6,0.65212901]
[1763356907108,3.2078,3183.7,3183.6,1.11862901]
[1763356908905,0.00470551,3184.0,3183.6,1.11862901]
[1763356909622,0.51388551,3184.0,3183.6,1.11862901]
[1763356909918,0.5092,3183.9,3183.6,1.11862901]
[1763356910820,0.00470551,3184.0,3183.9,0.4313]
[1763356912218,0.73542239,3184.0,3183.9,0.4313]
[1763356915222,0.50919,3183.9,3183.6,0.65212901]
[1763356915430,0.73071688,3183.8,3183.7,0.4313]
[1763356915615,1.23993688,3183.8,3183.6,0.65212901]
[1763356915813,0.50922,3183.8,3183.6,0.65212901]
[1763356916018,0.50922,3183.8,3183.7,0.4313]
[1763356916217,1.24073571,3183.8,3183.7,0.4313]
[1763356916714,1.24073571,3183.8,3183.6,0.65212901]
[1763356916914,0.50922,3183.8,3183.6,0.65212901]
[1763356917222,0.73183994,3183.7,3183.6,0.65212901]
[1763356917429,3.93963994,3183.7,3183.6,0.65212901]
[1763356917622,3.93963994,3183.7,3183.0,0.2789]
[1763356917819,1.66813688,3183.1,3183.0,0.2789]
[1763356918021,1.66813688,3183.1,3182.5,3.4867]
[1763356918022,0.50938,3182.7,3182.5,3.4867]
[1763356918220,0.73183994,3182.6,3182.5,3.918]
[1763356918525,1.66819688,3182.8,3182.6,0.4313]
[1763356918717,0.73154116,3182.7,3182.6,0.43465924]
[1763356919721,0.73154116,3182.7,3182.6,0.00335924]
[1763356920322,3.93934116,3182.7,3182.6,0.00335924]
[1763356921024,4.71261409,3182.7,3182.6,0.00335924]
[1763356922826,3.93934116,3182.7,3182.6,0.00335924]
[1763356923026,3.93934116,3182.7,3182.6,0.43465924]
[1763356923826,0.73154116,3182.7,3182.6,3.64245924]
[1763356924128,4.33598598,3183.1,3183.0,0.7047]
[1763356924331,0.73357123,3183.1,3183.0,0.7047]
[1763356924819,1.12586201,3183.3,3183.1,0.4313]
[1763356925133,4.146e-05,3183.2,3183.1,0.4313]
[1763356925430,3.2078,3183.5,3183.4,0.4313]
[1763356926832,3.2078,3183.5,3183.0,0.2734]
[1763356927327,4.33366201,3183.5,3183.0,0.2734]
[1763356927631,3.2078,3183.5,3183.4,0.4313]
[1763356928732,4.33366201,3183.5,3183.0,0.2734]
[1763356929137,4.33366201,3183.5,3183.4,0.4313]
[1763356930730,4.84292201,3183.5,3183.0,0.2734]
[1763356931130,1.12586201,3183.4,3183.0,0.2734]
[1763356931333,2.285762,3183.3,3183.0,0.2734]
[1763356931634,2.795052,3183.3,3183.0,0.2734]
[1763356931837,0.5093,3183.2,3183.0,0.2734]
[1763356932038,1.12586201,3183.1,3183.0,0.2734]
[1763356933242,1.63516201,3183.2,3183.0,0.2734]
[1763356933743,2.85217896,3183.3,3182.6,3.21115924]
[1763356933744,0.50936,3182.9,3182.6,3.21115924]
[1763356933941,2.79563797,3182.9,3182.6,3.21115924]
[1763356934145,0.50939,3182.6,3182.5,0.2734]
[1763356934435,3.35791957,3182.6,3182.5,0.2734]
[1763356935240,3.35791957,3182.6,3182.5,0.27684593]
[1763356936240,1.15989999,3182.6,3182.5,0.27684593]
[1763356936538,1.15989999,3182.6,3182.5,0.00344593]
[1763356936835,1.15989999,3182.6,3182.5,0.26374593]
[1763356937033,1.88835433,3182.6,3182.5,0.26374593]
[1763356937939,0.72845434,3182.6,3182.5,0.71204593]
[1763356938145,0.72845434,3182.6,3182.5,0.26374593]
[1763356938941,1.85282359,3182.6,3182.5,0.26374593]
[1763356939641,1.85282359,3182.6,3182.5,0.71204593]
[1763356939642,0.72845434,3182.6,3182.5,0.71204593]
[1763356946050,0.72845434,3182.6,3182.5,0.26374593]
[1763356946657,1.85282359,3182.6,3182.5,0.26374593]
[1763356947554,1.85282359,3182.6,3182.5,0.00344593]
[1763356948256,1.85282359,3182.6,3182.5,0.26694593]
[1763356949650,1.85282359,3182.6,3182.5,0.00344593]
[1763356949849,0.72845434,3182.6,3182.5,0.00344593]
[1763356950155,3.1416,3182.5,3182.0,0.2789]
[1763356950354,2.28454741,3182.1,3181.6,3.2078]
[1763356950558,1.66941999,3181.9,3181.6,3.2078]
[1763356950858,0.72845434,3181.8,3181.7,0.4174]
[1763356951060,0.7316285,3181.8,3181.7,0.42047256]
[1763356951662,0.7316285,3181.8,3181.7,0.00307256]
[1763356952052,2.2788884,3181.8,3181.7,0.00307256]
[1763356952756,1.89234644,3181.8,3181.7,0.00307256]
[1763356952958,5.10014644,3181.8,3181.7,0.00307256]
[1763356953459,0.50957,3181.5,3181.4,0.0031633]
[1763356953656,2.39874228,3181.5,3181.4,0.4205633]
[1763356954356,2.39874228,3181.5,3181.4,0.0031633]
[1763356954550,2.39874228,3181.5,3181.4,0.00651535]
[1763356958964,0.72845434,3181.5,3181.4,0.42391535]
[1763356959176,5.49633952,3181.8,3181.5,0.2635]
[1763356959359,0.72711132,3181.7,3181.5,0.2635]
[1763356960166,1.23666132,3181.7,3181.5,0.2635]
[1763356960367,0.72711132,3181.6,3181.5,0.2635]
[1763356961366,2.36130874,3181.7,3181.5,0.2635]
[1763356961673,0.72711132,3181.6,3181.5,0.2635]
[1763356964877,3.93491132,3181.6,3181.5,0.2635]
[1763356965476,0.50957,3181.5,3181.4,0.00651535]
[1763356965773,2.39739926,3181.5,3181.4,0.00651535]
[1763356966175,4.08437039,3181.5,3181.4,0.00651535]
[1763356971780,2.39739926,3181.5,3181.4,0.00651535]
[1763356972779,2.7848352,3181.5,3181.4,0.00651535]
[1763356973390,1.63410978,3181.5,3181.4,0.37941535]
[1763356973685,0.00317416,3181.8,3181.7,0.3729]
[1763356973894,0.51270416,3181.8,3181.5,0.2649]
[1763356974074,0.77407694,3181.6,3181.5,0.6378]
[1763356974378,3.98187694,3181.6,3181.5,0.6378]
[1763356974787,3.2078,3181.6,3181.5,0.6378]
[1763356975384,4.33179743,3181.6,3181.5,0.6378]
[1763356977385,3.2078,3181.6,3181.5,0.6378]
[1763356979188,4.33403633,3181.6,3181.5,0.6378]
[1763356979891,4.33403633,3181.6,3181.5,0.2649]
[1763356981292,3.2078,3181.6,3181.5,0.2649]
[1763356981794,0.50957,3181.5,3181.4,0.00651535]
[1763356982295,0.50971,3180.6,3180.5,0.2635]
[1763356982481,1.28341343,3180.6,3180.5,0.2635]
[1763356983087,0.50976,3180.3,3180.2,3.5807]
[1763356983290,0.77370343,3180.3,3180.2,3.58431251]
[1763356985598,1.488345,3180.3,3180.2,3.58431251]
[1763356986592,0.71464157,3180.3,3180.2,3.58431251]
[1763356986797,0.77370343,3180.6,3180.5,0.6378]
[1763356987099,1.48823817,3180.6,3180.5,0.6378]
[1763356988197,1.48823817,3180.6,3180.5,0.2649]
[1763356988709,0.71453474,3180.6,3180.5,0.6378]
[1763356989514,0.5098,3180.1,3180.0,0.2635]
[1763356989708,3.2078,3180.1,3179.0,0.2649]
[1763356990012,0.77370343,3179.7,3179.6,0.3729]
[1763356990314,1.99809817,3179.7,3179.0,0.2649]
[1763356990512,1.28356343,3179.7,3179.6,0.3729]
[1763356990705,1.48778079,3179.7,3179.6,0.3729]
[1763356991909,0.71407736,3179.7,3179.6,0.3729]
[1763356992207,1.28351343,3180.0,3179.7,0.3729]
[1763356992208,0.50985,3179.8,3179.7,0.3729]
[1763356992513,1.22347316,3179.8,3179.7,0.3729]
[1763356993011,1.48732659,3179.8,3179.7,0.3729]
[1763356998112,0.71362316,3179.8,3179.7,0.3729]
[1763356998420,0.00471313,3180.4,3180.3,0.4035]
[1763356998614,1.86466528,3180.4,3180.3,0.4035]
[1763357000420,0.373,3180.1,3180.0,0.6435]
[1763357000819,0.77841656,3180.4,3180.0,0.6435]
[1763357001823,1.08666816,3180.3,3180.2,0.4035]
[1763357002218,0.373,3180.1,3179.7,3.2078]
[1763357002426,1.14670343,3179.9,3179.8,0.4035]
[1763357002719,0.373,3179.6,3179.5,0.40678858]
[1763357002920,1.14670343,3179.6,3179.5,0.00328858]
[1763357003523,1.14670343,3179.6,3179.5,0.40678858]
[1763357004329,0.77370343,3179.8,3179.7,0.4035]
[1763357004508,1.48706124,3179.8,3179.7,0.4035]
[1763357004713,0.71335781,3179.8,3179.7,3.6113]
[1763357004921,0.50977,3180.3,3179.9,0.4035]
[1763357005122,0.373,3180.0,3179.9,0.4035]
[1763357005422,0.71343363,3180.1,3180.0,0.6382]